bitfinex/quotes_SOLUSD_20220109
["timestamp","ask_amount","ask_price","bid_price","bid_amount"]
[1641734633467,2.02051856,140.54,140.48,10.6794]
[1641734633667,2.02051856,140.54,140.45,0.25]
[1641734633867,2.02051856,140.54,140.45,24.0933]
[1641734634071,2.02051856,140.53,140.45,24.0933]
[1641734634870,2.02051856,140.52,140.48,10.679]
[1641734635474,2.02051856,140.53,140.48,10.679]
[1641734636372,2.02051856,140.53,140.49,0.25]
[1641734636771,2.02051856,140.54,140.51,10.677]
[1641734637372,2.02051856,140.55,140.51,10.677]
[1641734638075,2.02051856,140.54,140.5,10.6778]
[1641734638774,2.02051856,140.55,140.5,10.6778]
[1641734646479,2.02051856,140.54,140.5,10.6778]
[1641734647287,2.02051856,140.55,140.5,10.6778]
[1641734648285,2.02051856,140.55,140.49,10.6787]
[1641734648483,2.02051856,140.55,140.49,10.9287]
[1641734649083,2.02051856,140.55,140.44,26.99610118]
[1641734649283,2.02051856,140.55,140.45,0.07]
[1641734650284,2.02051856,140.5,140.45,10.7517]
[1641734651692,27.78510539,140.51,140.45,10.7517]
[1641734651693,29.80562395,140.51,140.45,10.7517]
[1641734653089,2.02051856,140.51,140.45,10.7517]
[1641734653288,2.02051856,140.51,140.46,0.25]
[1641734653491,2.02051856,140.51,140.48,10.677]
[1641734653888,2.02051856,140.54,140.48,10.677]
[1641734655889,2.02051856,140.53,140.48,10.677]
[1641734656490,2.02051856,140.53,140.47,10.6802]
[1641734656690,2.02051856,140.54,140.47,10.6802]
[1641734656989,2.02051856,140.54,140.45,24.1112]
[1641734657191,26.92961856,140.54,140.45,24.1112]
[1641734657392,2.02051856,140.51,140.45,24.1112]
[1641734657594,2.02051856,140.51,140.46,10.681]
[1641734657995,2.02051856,140.51,140.43,58.9435]
[1641734658194,5.744,140.51,140.44,0.25]
[1641734658823,7.76451856,140.51,140.44,0.25]
[1641734659394,7.76451856,140.51,140.43,0.25]
[1641734659893,18.44751856,140.51,140.43,10.6832]
[1641734660095,18.44751856,140.51,140.39,22.8925]
[1641734660294,23.9465,140.5,140.39,22.8925]
[1641734661097,25.58708573,140.49,140.39,22.8925]
[1641734661399,25.58708573,140.49,140.42,10.684]
[1641734661795,2.02051856,140.49,140.42,10.684]
[1641734661998,25.96701856,140.5,140.42,12.46482586]
[1641734662396,25.96701856,140.5,140.42,10.684]
[1641734662797,48.28032344,140.5,140.44,10.6823]
[1641734664095,48.28032344,140.5,140.43,10.6833]
[1641734664295,48.28032344,140.5,140.39,58.5042]
[1641734664496,65.04112344,140.5,140.4,0.25]
[1641734664896,67.061642,140.5,140.37,82.85081872]
[1641734665096,74.6745,140.49,140.39,10.6862]
[1641734665698,10.6867,140.47,140.39,10.6862]
[1641734665897,16.0777,140.47,140.39,10.6862]
[1641734666898,16.0777,140.47,140.38,10.6871]
[1641734667800,10.6867,140.47,140.38,10.6871]
[1641734668501,24.3458,140.48,140.39,0.25]
[1641734668700,76.69501856,140.49,140.38,10.76080617]
[1641734668909,76.69501856,140.49,140.39,0.25]
[1641734669302,74.6745,140.49,140.39,0.25]
[1641734670613,74.6745,140.49,140.44,10.6813]
[1641734671904,74.6745,140.49,140.43,10.6833]
[1641734674332,74.6745,140.49,140.42,10.684]
[1641734674533,74.6745,140.49,140.39,22.6811]
[1641734674732,74.6745,140.49,140.38,111.8051]
[1641734674733,74.6745,140.49,140.38,35.6134]
[1641734674932,74.6745,140.49,140.39,0.25]
[1641734675135,22.6187,140.48,140.39,0.25]
[1641734675333,10.6862,140.47,140.39,0.25]
[1641734675533,10.6862,140.47,140.39,10.6862]
[1641734677033,10.6862,140.47,140.38,10.6871]
[1641734677434,12.70671856,140.47,140.38,10.6871]
[1641734678033,10.6862,140.47,140.38,10.6871]
[1641734679136,10.6862,140.47,140.37,10.6878]
[1641734679335,18.8552,140.47,140.35,22.9589]
[1641734679534,18.8552,140.47,140.32,2.01420118]
[1641734679535,24.3424,140.46,140.32,2.01420118]
[1641734679835,10.6901,140.42,140.32,37.64290118]
[1641734680234,28.75818146,140.41,140.34,10.6899]
[1641734681235,39.44818146,140.41,140.34,10.6899]
[1641734683244,28.75818146,140.41,140.34,10.6899]
[1641734683946,80.32561856,140.45,140.34,10.6899]
[1641734684144,80.32561856,140.45,140.35,0.25]
[1641734684347,2.02051856,140.45,140.4,10.6837]
[1641734684944,24.76271856,140.47,140.4,10.6837]
[1641734685146,50.68330543,140.47,140.4,10.6837]
[1641734686247,48.66278687,140.47,140.4,10.6837]
[1641734687147,22.7422,140.47,140.4,10.6837]
[1641734687546,2.02051856,140.48,140.4,10.6837]
[1641734687746,2.02051856,140.47,140.44,10.6821]
[1641734688349,51.71937806,140.49,140.44,10.6821]
[1641734688547,27.97547806,140.49,140.44,10.6821]
[1641734689246,2.02051856,140.48,140.44,10.6821]
[1641734689446,2.02051856,140.48,140.43,10.6831]
[1641734689848,2.02051856,140.48,140.41,0.25]
[1641734690047,2.02051856,140.48,140.39,35.6118]
[1641734690247,2.02051856,140.48,140.4,0.25]
[1641734690454,2.02051856,140.48,140.42,10.6836]
[1641734690647,2.02051856,140.48,140.39,35.6118]
[1641734690849,2.02051856,140.48,140.4,0.25]
[1641734691648,2.02051856,140.48,140.43,10.6834]
[1641734691848,2.02051856,140.48,140.4,0.25]
[1641734692250,2.02051856,140.48,140.39,35.6118]
[1641734692449,2.02051856,140.48,140.42,10.6839]
[1641734692850,2.02051856,140.47,140.39,35.6118]
[1641734693949,2.02051856,140.47,140.41,10.6847]
[1641734694752,2.02051856,140.47,140.37,35.6163]
[1641734695150,12.70611856,140.47,140.39,10.6861]
[1641734695551,2.02051856,140.46,140.39,10.6861]
[1641734696954,2.02051856,140.47,140.39,10.6861]
[1641734697357,10.6867,140.46,140.39,10.6861]
[1641734697654,12.70721856,140.46,140.38,10.6869]
[1641734697855,12.70721856,140.46,140.34,76.2343]
[1641734698055,99.4619,140.45,140.36,0.25]
[1641734698254,101.48241856,140.45,140.36,0.25]
[1641734698855,10.6878,140.44,140.37,10.6876]
[1641734699054,24.78343021,140.43,140.37,10.6876]
[1641734700493,35.47193021,140.43,140.36,10.6885]
[1641734701893,24.78343021,140.43,140.36,10.6885]
[1641734703894,26.80394877,140.43,140.36,10.6885]
[1641734704795,37.49254877,140.43,140.36,10.6885]
[1641734706500,37.49254877,140.43,140.35,10.6893]
[1641734708801,37.49254877,140.43,140.34,10.6902]
[1641734709002,37.49254877,140.43,140.31,95.8565]
[1641734709201,22.6961,140.42,140.31,95.8565]
[1641734709402,10.6915,140.39,140.32,0.25]
[1641734710903,10.6915,140.39,140.32,10.9415]
[1641734711602,10.6908,140.4,140.32,10.9415]
[1641734711906,24.71661856,140.42,140.32,10.9415]
[1641734712906,10.69,140.41,140.32,10.6915]
[1641734713107,10.69,140.41,140.29,2.01420118]
[1641734713312,77.0,140.39,140.26,30.30681893]
[1641734713509,78.7879,140.38,140.26,28.52599307]
[1641734713809,86.9219,140.38,140.26,28.52599307]
[1641734714011,10.697,140.32,140.26,28.52599307]
[1641734714209,29.79126492,140.31,140.24,168.3641]
[1641734714409,36.80926492,140.31,140.25,0.25]
[1641734714611,36.80926492,140.31,140.24,94.7]
[1641734715815,47.50696492,140.31,140.24,94.7]
[1641734719258,31.769212,140.3,140.24,94.7]
[1641734719449,10.7012,140.27,140.24,94.7]
[1641734719650,6.06439994,140.26,140.24,94.7]
[1641734719851,10.7012,140.27,140.24,94.7]
[1641734720350,10.7012,140.27,140.19,23.9817]
[1641734720552,10.7012,140.27,140.2,3.0]
[1641734720955,10.7012,140.27,140.21,0.25]
[1641734723656,10.7012,140.27,140.2,13.7004]
[1641734723855,10.6998,140.28,140.21,10.6998]
[1641734724259,10.6998,140.28,140.2,3.0]
[1641734725758,17.3268,140.28,140.19,34.683]
[1641734725959,17.3268,140.28,140.19,23.9817]
[1641734726157,11.49408,140.27,140.17,78.8717]
[1641734726360,34.86128,140.27,140.18,0.25]
[1641734726558,34.86128,140.27,140.15,24.2258]
[1641734726559,10.7043,140.23,140.15,24.2258]
[1641734726759,31.15953954,140.22,140.13,78.197]
[1641734726961,31.15953954,140.22,140.12,105.4065]
[1641734727558,10.7068,140.19,140.12,94.7]
[1641734727960,20.450225,140.18,140.12,94.7]
[1641734728564,7.731,140.2,140.12,94.7]
[1641734728759,10.7075,140.18,140.12,94.7]
[1641734729559,10.7075,140.18,140.08,12.48962586]
[1641734730861,16.5835,140.18,140.08,12.48962586]
[1641734731465,16.5835,140.18,140.09,0.25]
[1641734731661,16.5835,140.18,140.08,12.48962586]
[1641734732061,10.7075,140.18,140.08,12.48962586]
[1641734736463,101.3469,140.21,140.09,13.63460072]
[1641734736464,10.7061,140.21,140.09,13.63460072]
[1641734736665,10.7061,140.21,140.13,10.7053]
[1641734740076,31.15953954,140.22,140.13,10.7053]
[1641734740670,31.15953954,140.22,140.12,10.7064]
[1641734740870,31.15953954,140.22,140.1,24.153]
[1641734741478,41.86433954,140.22,140.07,35.6917]
[1641734741770,24.3073,140.21,140.06,10.7103]
[1641734741972,47.1706,140.21,140.04,48.1234]
[1641734742170,48.95142586,140.21,140.04,48.1234]
[1641734742772,23.10914263,140.12,140.04,48.1234]
[1641734743072,23.10914263,140.12,140.04,58.8359]
[1641734744674,33.82114263,140.12,140.04,58.8359]
[1641734745376,23.10914263,140.12,140.04,58.8359]
[1641734745776,23.10914263,140.12,140.05,0.25]
[1641734745976,23.10914263,140.12,140.07,10.7098]
[1641734746383,23.10914263,140.12,140.04,48.1234]
[1641734746779,23.10914263,140.12,140.05,0.25]
[1641734747378,23.10914263,140.12,140.06,10.711]
[1641734747579,23.10914263,140.12,140.04,48.1234]
[1641734748279,33.82094263,140.12,140.05,10.7113]
[1641734748478,23.10914263,140.12,140.04,48.1234]
[1641734748878,23.10914263,140.12,140.05,0.25]
[1641734750379,33.82084263,140.12,140.06,10.7111]
[1641734750783,33.82084263,140.12,140.05,0.25]
[1641734750986,33.82084263,140.12,140.04,48.1234]
[1641734751181,9.438166,140.11,140.04,48.1234]
[1641734751381,10.717,140.08,140.04,48.1234]
[1641734751684,10.717,140.08,140.01,78.5212]
[1641734751881,10.717,140.08,139.99,1.78082586]
[1641734752084,10.717,140.08,140.0,3.0]
[1641734752282,10.717,140.08,139.99,1.78082586]
[1641734752485,10.717,140.08,140.0,1.78082586]
[1641734752683,10.717,140.08,139.97,94.7]
[1641734753682,10.717,140.08,139.98,10.7173]
[1641734753882,10.717,140.08,139.98,10.9673]
[1641734755084,24.985211,140.07,139.97,94.7]
[1641734755285,24.1802,140.07,139.97,94.7]
[1641734755585,10.7207,140.02,139.97,94.7]
[1641734755786,10.7207,140.02,139.94,23.9216]
[1641734755987,10.7207,140.02,139.93,23.3633]
[1641734756187,36.66280891,140.02,139.93,23.3633]
[1641734756688,36.66280891,140.02,139.94,3.0]
[1641734756889,36.66280891,140.02,139.94,13.7203]
[1641734757487,36.66280891,140.02,139.95,0.25]
[1641734758288,10.7207,140.02,139.95,0.25]
[1641734758588,10.7188,140.04,139.95,0.25]
[1641734758788,24.0431,140.09,139.95,2.29082586]
[1641734758990,24.0431,140.09,139.95,27.25352586]
[1641734759393,30.71142279,140.08,139.95,27.25352586]
[1641734759592,10.7179,140.05,139.95,37.97292586]
[1641734759789,10.7179,140.05,139.95,37.71292586]
[1641734761119,10.717,140.06,139.95,37.71292586]
[1641734764224,10.7163,140.07,139.95,37.71292586]
[1641734764424,53.22272279,140.08,139.95,37.71292586]
[1641734764826,30.71142279,140.08,139.95,37.71292586]
[1641734765423,30.71142279,140.08,139.95,25.2127]
[1641734765825,24.4529,140.07,139.95,25.2127]
[1641734766325,10.7202,140.02,139.95,25.2127]
[1641734766524,30.61254101,140.01,139.95,0.25]
[1641734767127,30.61254101,140.01,139.95,10.9694]
[1641734767329,30.61254101,140.01,139.95,10.7194]
[1641734768526,30.61254101,140.01,139.94,10.9703]
[1641734777241,30.61254101,140.01,139.94,0.25]
[1641734777444,30.61254101,140.01,139.93,23.8786]
[1641734778870,41.33344101,140.01,139.93,23.8786]
[1641734779474,41.33344101,140.01,139.92,10.7218]
[1641734779874,41.33344101,140.01,139.93,0.25]
[1641734780077,41.33344101,140.01,139.91,99.8551]
[1641734780276,41.297453,140.0,139.9,12.68312586]
[1641734780475,10.724,139.97,139.91,0.25]
[1641734781476,10.724,139.97,139.88,40.85277906]
[1641734781678,10.724,139.97,139.88,34.1547]
[1641734782878,10.724,139.97,139.89,0.25]
[1641734783080,79.3813,140.0,139.89,2.03082586]
[1641734783280,79.3813,140.0,139.9,1.78082586]
[1641734783479,79.3813,140.0,139.91,0.25]
[1641734783881,79.3813,140.0,139.92,1.78082586]
[1641734784080,90.1037,140.0,139.91,10.9726]
[1641734784480,90.1037,140.0,139.91,12.75342586]
[1641734784880,90.1037,140.0,139.91,0.25]
[1641734785681,23.2397,139.99,139.91,0.25]
[1641734786180,23.2397,139.99,139.91,10.9726]
[1641734786480,79.3813,140.0,139.92,0.25]
[1641734786880,79.3813,140.0,139.93,1.78082586]
[1641734787281,79.3813,140.0,139.94,0.25]
[1641734787982,79.3813,140.0,139.9,24.43702586]
[1641734788382,79.3813,140.0,139.91,0.25]
[1641734788981,90.1036,140.0,139.91,10.7226]
[1641734789384,79.3813,140.0,139.91,10.7226]
[1641734789782,79.3813,140.0,139.91,12.50342586]
[1641734790386,79.3813,140.0,139.96,10.7183]
[1641734790589,30.61254101,140.01,139.96,10.7183]
[1641734791485,30.61254101,140.01,139.97,0.25]
[1641734791683,30.61254101,140.01,139.99,10.716]
[1641734791885,6.06439994,140.0,139.99,10.716]
[1641734792085,24.898,140.06,139.99,10.716]
[1641734792784,55.9533637,140.06,140.01,10.7145]
[1641734792986,31.0553637,140.06,139.97,23.78432619]
[1641734793184,31.0553637,140.06,139.97,25.56515205]
[1641734793384,31.0553637,140.06,139.97,2.03082586]
[1641734794786,31.0553637,140.06,140.02,10.7142]
[1641734794985,31.0553637,140.06,139.97,23.9651]
[1641734795588,31.0553637,140.06,139.92,107.18721893]
[1641734795785,98.7495,140.05,139.93,24.3478]
[1641734795987,109.4679,140.05,139.96,10.7184]
[1641734796286,98.7495,140.05,139.96,10.7184]
[1641734796486,98.7495,140.05,139.97,0.25]
[1641734796688,98.7495,140.05,139.93,24.5978]
[1641734796889,98.7495,140.05,139.94,1.78082586]
[1641734797087,98.7495,140.05,139.95,35.7223]
[1641734797488,98.7495,140.05,139.96,0.25]
[1641734797987,98.7495,140.05,139.98,10.7176]
[1641734798589,98.7495,140.05,139.95,35.7223]
[1641734798788,98.7495,140.05,139.93,60.076]
[1641734799188,98.7495,140.05,139.94,0.26]
[1641734799589,109.468,140.05,139.95,10.7192]
[1641734802291,109.468,140.05,139.94,10.7205]
[1641734803691,109.468,140.05,139.95,10.9695]
[1641734804396,15.634182,140.04,139.92,24.652]
[1641734804695,35.7458,140.02,139.9,14.75519307]
[1641734804897,35.7458,140.02,139.91,0.25]
[1641734805326,22.6458,140.01,139.88,22.6067]
[1641734805528,22.6458,140.01,139.87,98.73189307]
[1641734805727,10.7259,139.96,139.87,98.73189307]
[1641734806428,69.97654528,139.95,139.87,94.7]
[1641734806629,29.244403,139.94,139.87,94.7]
[1641734806830,10.7295,139.91,139.87,94.7]
[1641734807329,10.7295,139.91,139.87,49.7032]
[1641734807631,10.7295,139.91,139.8,94.7]
[1641734808332,10.7295,139.91,139.82,94.7]
[1641734808333,1.78082586,139.9,139.82,94.7]
[1641734808533,1.78082586,139.9,139.75,5.8735585]
[1641734808534,10.7391,139.86,139.75,5.8735585]
[1641734808730,10.7391,139.86,139.74,513.91828374]
[1641734808731,18.5021,139.86,139.74,517.95318329]
[1641734808932,18.5021,139.86,139.74,4.03489955]
[1641734808933,20.28292586,139.86,139.74,4.03489955]
[1641734809232,28.21087725,139.85,139.74,4.03489955]
[1641734809432,19.91492,139.84,139.74,4.03489955]
[1641734809634,11.481696,139.83,139.74,4.03489955]
[1641734809832,11.481696,139.82,139.74,4.03489955]
[1641734810032,10.741,139.78,139.71,26.67279106]
[1641734810234,47.1853,139.84,139.71,26.67279106]
[1641734810432,47.1853,139.84,139.68,7.44166172]
[1641734810638,47.1853,139.84,139.7,3.0]
[1641734810834,47.1853,139.84,139.72,1.78082586]
[1641734811136,28.21087725,139.85,139.73,3.0]
[1641734811433,28.21087725,139.85,139.74,27.75142098]
[1641734811633,28.21087725,139.85,139.74,6.853]
[1641734811833,28.21087725,139.85,139.75,0.25]
[1641734812233,38.94777725,139.85,139.75,0.25]
[1641734812433,38.94777725,139.85,139.73,0.51]
[1641734812637,38.94777725,139.85,139.74,1.78082586]
[1641734813034,28.21087725,139.85,139.75,0.25]
[1641734814034,39.59926,139.84,139.74,1.78082586]
[1641734814234,39.59926,139.84,139.72,23.3321]
[1641734814835,39.331981,139.84,139.72,23.3321]
[1641734815134,17.132498,139.83,139.72,25.11292586]
[1641734815335,11.463622,139.82,139.72,35.84942586]
[1641734815535,28.594481,139.84,139.72,35.84942586]
[1641734815737,28.594481,139.84,139.73,0.25]
[1641734815937,28.594481,139.84,139.73,0.51]
[1641734816236,28.594481,139.84,139.73,2.03082586]
[1641734816439,28.21087725,139.85,139.73,2.03082586]
[1641734817137,28.21087725,139.85,139.73,8.78682586]
[1641734817740,28.21087725,139.85,139.74,0.26]
[1641734817939,22.5279,139.87,139.75,10.8036]
[1641734818140,22.5279,139.87,139.75,12.58442586]
[1641734818340,22.5279,139.87,139.76,0.51]
[1641734818539,22.5279,139.87,139.76,2.29082586]
[1641734818742,22.5279,139.87,139.76,2.03082586]
[1641734818945,28.82076022,139.86,139.76,2.03082586]
[1641734819542,28.82076022,139.86,139.76,0.25]
[1641734819941,28.82076022,139.86,139.77,1.78082586]
[1641734820343,28.82076022,139.86,139.75,3.51]
[1641734820544,28.82076022,139.86,139.75,5.29082586]
[1641734820743,28.82076022,139.86,139.75,5.03082586]
[1641734821144,28.82076022,139.86,139.75,2.03082586]
[1641734821548,28.82076022,139.86,139.78,10.7319]
[1641734821944,28.82076022,139.86,139.76,3.0]
[1641734822144,28.82076022,139.86,139.77,0.25]
[1641734822344,23.5733,139.9,139.77,0.25]
[1641734822547,79.8394,139.92,139.77,31.1592]
[1641734822748,79.8394,139.92,139.78,1.78082586]
[1641734822947,79.8394,139.92,139.79,0.25]
[1641734823349,28.02339834,139.91,139.79,0.25]
[1641734824450,23.3902,139.9,139.79,2.03082586]
[1641734824649,23.3902,139.9,139.79,12.51152586]
[1641734824850,23.3902,139.9,139.8,0.25]
[1641734825048,23.3902,139.9,139.77,58.9757]
[1641734825250,23.3902,139.9,139.78,0.25]
[1641734825449,23.3902,139.9,139.79,35.7616]
[1641734825650,28.02339834,139.91,139.81,10.7292]
[1641734825850,15.654074,139.9,139.78,2.03082586]
[1641734826052,22.9678,139.9,139.78,2.10082586]
[1641734826951,22.4678,139.9,139.78,2.10082586]
[1641734827851,22.4678,139.9,139.81,10.7296]
[1641734829152,15.197853,139.89,139.81,10.7296]
[1641734829656,22.4678,139.9,139.81,10.7296]
[1641734829853,21.193993,139.89,139.81,10.7296]
[1641734830452,25.441562,139.89,139.81,10.7296]
[1641734830653,27.153028,139.89,139.81,10.7296]
[1641734830853,27.153028,139.89,139.8,10.7305]
[1641734831055,37.609832,139.89,139.77,58.9757]
[1641734831255,45.0767,139.9,139.77,23.2092]
[1641734831855,45.0767,139.9,139.78,10.7313]
[1641734832455,45.0767,139.9,139.79,0.25]
[1641734833357,45.0767,139.9,139.78,0.25]
[1641734833656,45.0767,139.9,139.77,23.2092]
[1641734833858,45.0767,139.9,139.79,10.7308]
[1641734834059,35.899909,139.89,139.79,10.7308]
[1641734834457,20.367683,139.89,139.79,10.7308]
[1641734834660,11.454218,139.88,139.79,10.7308]
[1641734834858,11.454218,139.87,139.77,33.9414]
[1641734835059,46.85752586,139.9,139.77,33.9414]
[1641734836064,46.85752586,139.9,139.77,10.7322]
[1641734836364,15.704937,139.89,139.77,10.7322]
[1641734836866,17.37667529,139.89,139.77,10.7322]
[1641734837068,15.700455,139.88,139.75,10.7337]
[1641734837270,24.7653,139.87,139.75,10.7337]
[1641734840785,41.8071,139.87,139.75,10.7337]
[1641734840986,1.78082586,139.86,139.74,26.16096141]
[1641734841186,1.78082586,139.86,139.74,2.01466141]
[1641734841887,10.7368,139.84,139.73,10.7361]
[1641734842087,10.7368,139.84,139.71,25.11536141]
[1641734842285,10.7368,139.84,139.71,2.01466141]
[1641734842488,10.7368,139.84,139.72,10.737]
[1641734843285,46.99409001,139.85,139.72,10.737]
[1641734844086,26.031593,139.84,139.72,10.737]
[1641734844286,43.43545886,139.84,139.71,10.7379]
[1641734844488,1.78082586,139.84,139.71,10.7379]
[1641734845091,1.78082586,139.84,139.68,35.7912]
[1641734845288,10.7388,139.82,139.7,10.7386]
[1641734845490,1.78082586,139.84,139.68,23.7661]
[1641734845689,39.452455,139.83,139.68,23.7661]
[1641734845989,1.78082586,139.82,139.68,23.7661]
[1641734846189,39.452455,139.81,139.68,23.7661]
[1641734846394,30.536407,139.81,139.68,23.7661]
[1641734846594,29.93533417,139.79,139.68,23.7661]
[1641734846793,15.083625,139.78,139.68,34.5062]
[1641734846993,15.083625,139.78,139.68,10.7401]
[1641734847196,11.455042,139.77,139.67,0.39164016]
[1641734847395,16.244647,139.77,139.67,0.39164016]
[1641734847596,1.78082586,139.76,139.67,0.39164016]
[1641734847795,61.031433,139.75,139.67,0.39164016]
[1641734847993,24.17155244,139.71,139.67,0.39164016]
[1641734848393,16.333316,139.7,139.67,0.39164016]
[1641734848595,6.06439994,139.69,139.67,0.39164016]
[1641734848994,17.252036,139.68,139.67,0.39164016]
[1641734850797,6.06439994,139.69,139.67,0.39164016]
[1641734852096,3.03219997,139.69,139.67,0.39164016]
[1641734853302,35.809,139.78,139.67,0.39164016]
[1641734853499,47.2105,139.77,139.67,0.39164016]
[1641734853899,47.2105,139.77,139.67,11.13234016]
[1641734854102,74.78337633,139.77,139.67,11.13234016]
[1641734854600,11.438798,139.76,139.67,11.13234016]
[1641734854800,10.7384,139.81,139.67,11.13234016]
[1641734855002,78.2641,139.83,139.68,0.25]
[1641734855202,8.900191,139.82,139.68,23.4554]
[1641734855400,11.43798,139.81,139.68,23.4554]
[1641734855601,78.2641,139.83,139.68,23.2054]
[1641734855800,24.54116883,139.81,139.68,23.2054]
[1641734856001,26.32199469,139.81,139.68,23.2054]
[1641734856202,10.7401,139.78,139.69,10.7389]
[1641734856413,22.770818,139.77,139.68,23.2054]
[1641734856610,22.770818,139.77,139.67,25.12184016]
[1641734856813,62.239783,139.77,139.67,0.39164016]
[1641734857012,23.8005,139.76,139.67,0.39164016]
[1641734857212,90.3017789,139.75,139.67,0.39164016]
[1641734857412,11.451947,139.74,139.67,0.39164016]
[1641734860949,34.416547,139.74,139.67,0.39164016]
[1641734861343,11.451947,139.73,139.67,0.39164016]
[1641734861745,22.397695,139.73,139.67,0.39164016]
[1641734862147,29.135695,139.73,139.67,0.39164016]
[1641734862554,22.397695,139.72,139.67,0.39164016]
[1641734863453,22.397695,139.73,139.67,0.39164016]
[1641734864249,18.359449,139.73,139.67,0.39164016]
[1641734864450,18.359449,139.72,139.67,0.39164016]
[1641734864649,6.910813,139.71,139.67,0.39164016]
[1641734864852,6.910813,139.7,139.67,0.39164016]
[1641734865149,6.910813,139.74,139.68,10.738]
[1641734865556,6.910813,139.78,139.68,10.738]
[1641734865853,1.67173829,139.84,139.69,0.25]
[1641734866051,1.67173829,139.84,139.74,35.7753]
[1641734866052,23.000769,139.83,139.74,35.7753]
[1641734866452,23.000769,139.83,139.75,0.25]
[1641734866652,24.74623829,139.87,139.75,0.25]
[1641734866853,40.633179,139.86,139.75,0.25]
[1641734867052,40.633179,139.86,139.8,10.7312]
[1641734867653,24.12492812,139.85,139.76,35.7705]
[1641734867954,21.877548,139.84,139.76,35.7705]
[1641734868356,18.175532,139.84,139.79,10.7314]
[1641734868555,11.437995,139.83,139.76,35.7705]
[1641734868754,18.175532,139.84,139.76,35.7705]
[1641734869353,24.12492812,139.85,139.76,35.7705]
[1641734869553,18.175532,139.84,139.8,10.731]
[1641734869752,18.175532,139.84,139.75,24.9474]
[1641734869753,41.220359,139.84,139.73,35.7774]
[1641734869955,46.087054,139.84,139.69,73.4306]
[1641734870154,53.654054,139.84,139.68,49.60206141]
[1641734870354,39.349517,139.83,139.68,49.60206141]
[1641734870555,10.7372,139.81,139.72,10.7374]
[1641734870860,18.062915,139.8,139.72,10.7374]
[1641734871055,29.506674,139.79,139.72,10.7374]
[1641734871255,98.8149,139.82,139.72,10.7374]
[1641734871655,29.506674,139.81,139.72,10.7374]
[1641734871856,25.30135454,139.8,139.72,10.7374]
[1641734872155,37.085802,139.79,139.72,10.7374]
[1641734874056,11.445395,139.79,139.72,10.7374]
[1641734874556,24.22183829,139.85,139.72,10.7374]
[1641734874758,11.445395,139.84,139.72,33.2829]
[1641734875256,23.48713275,139.83,139.72,33.2829]
[1641734876060,23.48713275,139.83,139.73,45.87683286]
[1641734876384,23.48713275,139.83,139.73,10.34743286]
[1641734877158,23.48713275,139.83,139.78,10.7327]
[1641734877358,11.23569,139.82,139.78,10.7327]
[1641734877561,22.5501,139.85,139.78,10.7327]
[1641734878662,52.32592148,139.85,139.78,10.7327]
[1641734879060,16.935158,139.84,139.78,10.7327]
[1641734879264,11.44294,139.84,139.78,10.7327]
[1641734879462,11.44294,139.83,139.78,10.7327]
[1641734879662,11.44294,139.84,139.78,10.7327]
[1641734879861,11.44294,139.83,139.78,10.7327]
[1641734880062,11.44294,139.83,139.76,10.7336]
[1641734880266,20.349538,139.82,139.63,111.648]
[1641734880463,59.51298482,139.85,139.69,23.3094]
[1641734880662,1.67173829,139.84,139.69,23.3094]
[1641734880862,9.78973829,139.84,139.67,78.54274016]
[1641734881062,9.78973829,139.84,139.69,10.739]
[1641734881063,10.7396,139.78,139.69,10.739]
[1641734881962,126.09273829,139.81,139.7,0.25]
[1641734882264,1.67173829,139.81,139.7,0.25]
[1641734882663,1.67173829,139.81,139.7,23.6994]
[1641734882863,24.30023829,139.84,139.7,23.6994]
[1641734883261,14.068111,139.83,139.7,23.6994]
[1641734883463,18.313594,139.83,139.7,23.6994]